Workbook

Sheet NSU
B1: Noora Boelius | E1: 15.12.1983
B2: SUPERPESIS | E2: Runkosarja | I2: Kärkilyönnit (KL), pesänvälit | Q2: Runkosarja | U2: Ylempi loppusarja | Z2: Alempi loppusarja | AG2: Arvo-ottelut ja mitalit
B3: Vuosi | C3: Sija | D3: Seura | E3: OTT | F3: KUN | G3: LÖI | H3: TOI | I3: KL | J3: 0 > 1 | K3: 1 > 2 | L3: 2 > 3 | M3: 3 > k | N3: KL-% | P3: LÖI | Q3: TOI | R3: L+T | S3: KL | U3: OTT | V3: KUN | W3: LÖI | X3: TOI | Y3: KL | Z3: OTT | AA3: KUN | AB3: LÖI | AC3: TOI | AD3: KL | AE3: IL | AF3: LL | AG3: Halli | AH3: K | AI3: H | AJ3: P
B4: 2002 | C4: 11. | D4: ViVe | E4: 23 | F4: 0 | G4: 10 | H4: 0 | I4: 40 | J4: 5 | K4: 12 | L4: 13 | M4: 10 | N4: 41.7 % | O4: =PRODUCT(I4/N4) -> 95.92326139 | Z4: 7 | AA4: 0 | AB4: 5 | AC4: 1 | AD4: 16
B5: 2003 | C5: 10. | D5: PattU | E5: 12 | F5: 0 | G5: 0 | H5: 10 | I5: 45 | J5: 7 | K5: 19 | L5: 19 | M5: 0 | N5: 55.6 % | O5: =PRODUCT(I5/N5) -> 80.9352518
B6: 2003 | C6: 6. | D6: Pesäkarhut | E6: 9 | F6: 0 | G6: 0 | H6: 1 | I6: 10 | J6: 3 | K6: 4 | L6: 3 | M6: 0 | N6: 29.4 % | O6: 34.01360544 | U6: 2 | V6: 0 | W6: 0 | X6: 0 | Y6: 1
B7: 2004 | C7: 3. | D7: Pesäkarhut | E7: 20 | F7: 1 | G7: 10 | H7: 5 | I7: 49 | J7: 12 | K7: 6 | L7: 20 | M7: 11 | N7: 47.6 % | O7: 102.9411765 | U7: 14 | V7: 2 | W7: 6 | X7: 5 | Y7: 30 | AJ7: 1
B8: 2005 | C8: 2. | D8: Pesäkarhut | E8: 20 | F8: 2 | G8: 6 | H8: 5 | I8: 48 | J8: 12 | K8: 10 | L8: 18 | M8: 8 | N8: 43.2 % | O8: 111.1111111 | U8: 14 | V8: 0 | W8: 2 | X8: 1 | Y8: 19 | AI8: 1
B9: 2006 | C9: 3. | D9: Pesäkarhut | E9: 19 | F9: 3 | G9: 15 | H9: 17 | I9: 88 | J9: 7 | K9: 26 | L9: 37 | M9: 18 | N9: 61.5 % | O9: 143.0894309 | U9: 11 | V9: 1 | W9: 5 | X9: 7 | Y9: 42 | AE9: 1 | AJ9: 1
B10: 2007 | C10: 4. | D10: Pesäkarhut | E10: 20 | F10: 1 | G10: 21 | H10: 8 | I10: 65 | J10: 9 | K10: 9 | L10: 25 | M10: 22 | N10: 50.0 % | O10: 130 | U10: 12 | V10: 0 | W10: 7 | X10: 2 | Y10: 24 | AG10: 1
B11: Yhteensä | E11: =SUM(E4:E10) -> 123 | F11: 7 | G11: 62 | H11: 46 | I11: 345 | J11: 55 | K11: 86 | L11: 135 | M11: 69 | N11: =PRODUCT(I11/O11) -> 49.4 % | O11: =SUM(O4:O10) -> 698.0138371 | U11: 53 | V11: 3 | W11: 20 | X11: 15 | Y11: 116 | Z11: 7 | AA11: 0 | AB11: 5 | AC11: 1 | AD11: 16 | AE11: 1 | AF11: 0 | AG11: 1 | AH11: 0 | AI11: 1 | AJ11: 2
B12: Pesispörssi | D12: =SUM(F11:H11)+((I11-F11-G11)/3)+(E11/3)+(AE11*25)+(AF11*25)+(AG11*10)+(AH11*25)+(AI11*20)+(AJ11*15) -> 333.0
B14: URA SUPERISSA | E14: OTT | F14: KUN | G14: LÖI | H14: TOI | I14: KL | K14: ka/L | L14: ka/T | M14: ka/KL | N14: K - % | P14: ENSIMMÄISET
B15: Runkosarja | E15: =PRODUCT(E11) -> 123 | F15: =PRODUCT(F11) -> 7 | G15: =PRODUCT(G11) -> 62 | H15: =PRODUCT(H11) -> 46 | I15: =PRODUCT(I11) -> 345 | K15: =PRODUCT((F15+G15)/E15) -> 0.56 | L15: =PRODUCT(H15/E15) -> 0.37 | M15: =PRODUCT(I15/E15) -> 2.80 | N15: =PRODUCT(N11) -> 49.4 % | O15: =PRODUCT(O11) -> 698.0138371 | P15: Ottelu | R15: 16.05. 2002 TyTe - ViVe 1-0 (8-1, 1-1) | AC15: 1. ottelu | AF15: 18 v 5 kk 1 pv
B16: Ylempi loppusarja | E16: =PRODUCT(U11) -> 53 | F16: =PRODUCT(V11) -> 3 | G16: =PRODUCT(W11) -> 20 | H16: =PRODUCT(X11) -> 15 | I16: =PRODUCT(Y11) -> 116 | K16: =PRODUCT((F16+G16)/E16) -> 0.43 | L16: =PRODUCT(H16/E16) -> 0.28 | M16: =PRODUCT(I16/E16) -> 2.19 | N16: =PRODUCT(I16/O16) -> 40.0 % | O16: 290 | P16: Lyöty | R16: 02.06. 2002 ViVe - Pesä Ysit 1-2 (2-5, 4-3, 0-0, 0-1) | AC16: 6. ottelu | AF16: 18 v 5 kk 17 pv
B17: Alempi loppusarja | E17: =PRODUCT(Z11) -> 7 | F17: =PRODUCT(AA11) -> 0 | G17: =PRODUCT(AB11) -> 5 | H17: =PRODUCT(AC11) -> 1 | I17: =PRODUCT(AD11) -> 16 | K17: =PRODUCT((F17+G17)/E17) -> 0.71 | L17: =PRODUCT(H17/E17) -> 0.14 | M17: =PRODUCT(I17/E17) -> 2.29 | N17: =PRODUCT(I17/O17) -> 48.5 % | O17: 33 | P17: Tuotu | R17: 21.08. 2002 Paukku - ViVe 0-2 (5-6, 5-6) | AC17: 26. ottelu | AF17: 18 v 8 kk 6 pv
B18: KAIKKI | E18: =SUM(E15:E17) -> 183 | F18: =SUM(F15:F17) -> 10 | G18: =SUM(G15:G17) -> 87 | H18: =SUM(H15:H17) -> 62 | I18: =SUM(I15:I17) -> 477 | K18: =PRODUCT((F18+G18)/E18) -> 0.53 | L18: =PRODUCT(H18/E18) -> 0.34 | M18: =PRODUCT(I18/E18) -> 2.61 | N18: =PRODUCT(I18/O18) -> 46.7 % | O18: =SUM(O15:O17) -> 1021.013837 | P18: Kunnari | R18: 19.05. 2004 Pesä Ysit - Pesäkarhut 0-2 (4-8, 5-7) | AC18: 57. ottelu | AF18: 20 v 5 kk 4 pv
B20: Seurat | D20: ViVe = Vimpelin Veto (1934)
D21: PattU = Pattijoen Urheilijat (1928)
D22: Pesäkarhut = Pesäkarhut, Pori (1985)

Sheet Arvo-ottelut
B1: ITÄ - LÄNSI - KORTTI
B2: Noora Boelius | C2: 15.12.1983
B3: NAISET | C3: Itä - Länsi, tulos | D3: Joukkue | E3: Seura | G3: V | H3: T | I3: H | J3: Up. | K3: Lj. | L3: Palk. | M3: O | N3: K | O3: L | P3: T | Q3: KL | R3: 1 | S3: 2 | T3: 3 | U3: k | V3: KL-% | W3: Pelinjohtaja | X3: Yleisöä
B4: 01.07. 2006 Kitee | C4: 0-1 (1-5, 2-2) | D4: Länsi | E4: Pesäkarhut | G4: 1 | K4: jok | M4: 1 | O4: 2 | Q4: 4/7 | S4: 0/1 | T4: 2/3 | U4: 2/3 | V4: 57.1 % | W4: Petri Kaijansinkko | X4: 4322
B5: Ikä ensimmäisessä ottelussa | C5: 22 v 6 kk 16 pv
